{"text_format":"3","workbook":"xlsx","n_sheets":3,"sheets":["Ancillary Order","Ancillary Hardware","Cables"],"not_rendered":{"images":1,"macros":1,"defined_names":2},"read":"whole","date_system":"1900"}

{"sheet":"Ancillary Order","index":0,"n_rows":67,"n_cols":8,"rows_kept":67,"merged":[[1,1,4,7],[5,1,6,3],[7,2,7,3],[7,5,7,6],[8,2,8,3],[8,5,8,6],[9,2,9,3],[9,5,9,6],[10,2,10,3],[10,5,10,6],[11,2,11,3],[11,5,11,6],[12,2,12,3],[12,5,12,6],[13,2,13,3],[13,5,13,6],[14,2,14,3],[14,5,14,6],[15,5,15,6],[17,1,18,2],[17,3,18,5],[17,6,18,7],[19,1,19,2],[19,3,19,5],[19,6,19,7],[21,1,21,7],[22,2,22,4],[23,2,23,4],[24,2,24,4],[25,2,25,4],[26,2,26,4],[27,2,27,4],[28,2,28,4],[29,2,29,4],[30,2,30,4],[31,2,31,4],[32,1,32,7],[33,2,33,4],[34,2,34,4],[35,2,35,4],[36,2,36,4],[37,2,37,4],[38,2,38,4],[39,2,39,4],[40,2,40,4],[41,2,41,4],[42,2,42,4],[43,5,43,6],[44,4,44,6],[60,2,60,3],[60,5,60,6],[61,5,61,6],[62,5,62,6]]}
[]
[null,"Ancillary Order"]
[]
[]
[]
[null,"18200 Cascade Ave S Seattle WA 98188",{"$nulls":4},"Date:",{"$f":"TODAY()","v":"2019-10-16"}]
[]
[null,"Company Name:",null,null,"Contact Name:"]
[null,"Customer Code:",null,null,"Email:"]
[null,"Billing Address",null,null,"Shipping Address"]
[null,"Street Address:",null,null,"Street Address:"]
[null,"City, State:",null,null,"City, State:"]
[null,"Zip Code:",null,null,"Zip Code:"]
[null,"Phone Number:",null,null,"Phone Number:"]
[null,"PO:",null,null,"Special Requests"]
[]
[]
[null,"SHIPPING  METHOD",null,"SHIPPING TERMS",null,null,"DELIVERY DATE"]
[]
[null,"FedEx",null,"Ground",null,null,"TBD"]
[]
[null,"Ancillary Hardware"]
[null,"PRODUCT CODE","DESCRIPTION (Select Items Here)",null,null,"QTY","UNIT PRICE","LINE TOTAL"]
[null,{"$f":"_xlfn.IFNA(VLOOKUP($C24, 'Ancillary Hardware'!$C$4:$E$65, 2,FALSE), \"\")","v":""},{"$nulls":4},{"$f":"_xlfn.IFNA(VLOOKUP($C24, 'Ancillary Hardware'!$C$4:$E$65, 3,FALSE), \"\")","v":""},{"$f":"IFERROR(F24*G24, \" \")","v":" "}]
[null,{"$f":"_xlfn.IFNA(VLOOKUP($C25, 'Ancillary Hardware'!$C$4:$E$65, 2,FALSE), \"\")","v":""},{"$nulls":4},{"$f":"_xlfn.IFNA(VLOOKUP($C25, 'Ancillary Hardware'!$C$4:$E$65, 3,FALSE), \"\")","v":""},{"$f":"IFERROR(F25*G25, \" \")","v":" "}]
[null,{"$f":"_xlfn.IFNA(VLOOKUP($C26, 'Ancillary Hardware'!$C$4:$E$65, 2,FALSE), \"\")","v":""},{"$nulls":4},{"$f":"_xlfn.IFNA(VLOOKUP($C26, 'Ancillary Hardware'!$C$4:$E$65, 3,FALSE), \"\")","v":""}," "]
[null,{"$f":"_xlfn.IFNA(VLOOKUP($C27, 'Ancillary Hardware'!$C$4:$E$65, 2,FALSE), \"\")","v":""},{"$nulls":4},{"$f":"_xlfn.IFNA(VLOOKUP($C27, 'Ancillary Hardware'!$C$4:$E$65, 3,FALSE), \"\")","v":""}," "]
[null,{"$f":"_xlfn.IFNA(VLOOKUP($C28, 'Ancillary Hardware'!$C$4:$E$65, 2,FALSE), \"\")","v":""},{"$nulls":4},{"$f":"_xlfn.IFNA(VLOOKUP($C28, 'Ancillary Hardware'!$C$4:$E$65, 3,FALSE), \"\")","v":""}," "]
[null,{"$f":"_xlfn.IFNA(VLOOKUP($C29, 'Ancillary Hardware'!$C$4:$E$65, 2,FALSE), \"\")","v":""},{"$nulls":4},{"$f":"_xlfn.IFNA(VLOOKUP($C29, 'Ancillary Hardware'!$C$4:$E$65, 3,FALSE), \"\")","v":""}," "]
[null,{"$f":"_xlfn.IFNA(VLOOKUP($C30, 'Ancillary Hardware'!$C$4:$E$65, 2,FALSE), \"\")","v":""},{"$nulls":4},{"$f":"_xlfn.IFNA(VLOOKUP($C30, 'Ancillary Hardware'!$C$4:$E$65, 3,FALSE), \"\")","v":""}," "]
[null,{"$f":"_xlfn.IFNA(VLOOKUP($C31, 'Ancillary Hardware'!$C$4:$E$65, 2,FALSE), \"\")","v":""},{"$nulls":4},{"$f":"_xlfn.IFNA(VLOOKUP($C31, 'Ancillary Hardware'!$C$4:$E$65, 3,FALSE), \"\")","v":""}," "]
[null,{"$f":"_xlfn.IFNA(VLOOKUP($C32, 'Ancillary Hardware'!$C$4:$E$65, 2,FALSE), \"\")","v":""},{"$nulls":4},{"$f":"_xlfn.IFNA(VLOOKUP($C32, 'Ancillary Hardware'!$C$4:$E$65, 3,FALSE), \"\")","v":""}," "]
[null,"Cables"]
[null,"PRODUCT CODE","DESCRIPTION (Select Items Here)",null,null,"QTY","UNIT PRICE","LINE TOTAL"]
[null,{"$f":"_xlfn.IFNA(VLOOKUP($C35, Cables!$C$1:$E$53, 2,FALSE), \"\")","v":""},{"$nulls":4},{"$f":"_xlfn.IFNA(VLOOKUP($C35, Cables!$C$1:$E$53, 3,FALSE), \"\")","v":""},{"$f":"IFERROR(F35*G35, \" \")","v":" "}]
[null,{"$f":"_xlfn.IFNA(VLOOKUP($C36, Cables!$C$1:$E$53, 2,FALSE), \"\")","v":""},{"$nulls":4},{"$f":"_xlfn.IFNA(VLOOKUP($C36, Cables!$C$1:$E$53, 3,FALSE), \"\")","v":""},{"$f":"IFERROR(F36*G36, \" \")","v":" "}]
[null,{"$f":"_xlfn.IFNA(VLOOKUP($C37, Cables!$C$1:$E$53, 2,FALSE), \"\")","v":""},{"$nulls":4},{"$f":"_xlfn.IFNA(VLOOKUP($C37, Cables!$C$1:$E$53, 3,FALSE), \"\")","v":""}," "]
[null,{"$f":"_xlfn.IFNA(VLOOKUP($C38, Cables!$C$1:$E$53, 2,FALSE), \"\")","v":""},{"$nulls":4},{"$f":"_xlfn.IFNA(VLOOKUP($C38, Cables!$C$1:$E$53, 3,FALSE), \"\")","v":""}," "]
[null,{"$f":"_xlfn.IFNA(VLOOKUP($C39, Cables!$C$1:$E$53, 2,FALSE), \"\")","v":""},{"$nulls":4},{"$f":"_xlfn.IFNA(VLOOKUP($C39, Cables!$C$1:$E$53, 3,FALSE), \"\")","v":""}," "]
[null,{"$f":"_xlfn.IFNA(VLOOKUP($C40, Cables!$C$1:$E$53, 2,FALSE), \"\")","v":""},{"$nulls":4},{"$f":"_xlfn.IFNA(VLOOKUP($C40, Cables!$C$1:$E$53, 3,FALSE), \"\")","v":""}," "]
[null,{"$f":"_xlfn.IFNA(VLOOKUP($C41, Cables!$C$1:$E$53, 2,FALSE), \"\")","v":""},{"$nulls":4},{"$f":"_xlfn.IFNA(VLOOKUP($C41, Cables!$C$1:$E$53, 3,FALSE), \"\")","v":""}," "]
[null,{"$f":"_xlfn.IFNA(VLOOKUP($C42, Cables!$C$1:$E$53, 2,FALSE), \"\")","v":""},{"$nulls":4},{"$f":"_xlfn.IFNA(VLOOKUP($C42, Cables!$C$1:$E$53, 3,FALSE), \"\")","v":""}," "]
[null,{"$f":"_xlfn.IFNA(VLOOKUP($C43, Cables!$C$1:$E$53, 2,FALSE), \"\")","v":""},{"$nulls":4},{"$f":"_xlfn.IFNA(VLOOKUP($C43, Cables!$C$1:$E$53, 3,FALSE), \"\")","v":""}," "]
[{"$nulls":5},"Ancillary Hardware Total",null,{"$f":"SUM(H24:H32)","v":0}]
[{"$nulls":4},"Cable Total",null,null,{"$f":"SUM(H35:H43)","v":0}]
[{"$nulls":6},"Total:",{"$f":"SUM(H43:H45)","v":0}]
[null,"Terms & Conditions"]
[null,"1. By filling out and sending this form, you are: (i) representing that you are authorized to act on behalf of "]
[null,"   your company, (ii) acknowledging that you have reviewed the information on this document, and (iii) are "]
[null,"    instructing Zonar to order the items selected as indicated on this form."]
[null,"2. Delivery date will be confirmed upon receipt of purchase order."]
[null,"3. All prices are in US Dollars"]
[null,"4. Shipping and Tax costs not included in quote above, but will be billed at cost"]
[null,"5. For items not available in the options above, please call your Sales Representative or 1.877.843.3847 for Customer Care for further assistance on your order."]
[null,"6. Firm pricing will be provided in a Zonar Sales Invoice."]
[null,"7. To ensure order is processed promptly, please complete all fields in this form. Any incomplete forms may be delayed while processing."]
[null,"8. Should the Submit Order button cause an error, you may save and email this form directly to orders@zonarsystems.com."]
[]
[]
[]
[null,"X",null,null,"Name:"]
[{"$nulls":4},"Date:",{"$f":"TODAY()","v":"2019-10-16"}]
[{"$nulls":4},"Title:"]
[]
[]
[]
[null,"Revision JWG 10152019"]

{"sheet":"Ancillary Hardware","index":1,"n_rows":65,"n_cols":7,"rows_kept":65,"hidden":true}
["Classification","Product Type","Product Name","Product ID","List Price","Product Category","Category Code"]
[]
[null,null,"---EVIR RFID/NFC Tags---"]
["HARDWARE","Sales Inventory","Round Black Asset NFC Tag","20101",{"v":6.45,"d":"$6.45"},"EVIR Hardware Add-ons","EVIR-ADD"]
["HARDWARE","Sales Inventory","Round Marigold Asset NFC Tag","20085",{"v":6.45,"d":"$6.45"},"EVIR Hardware Add-ons","EVIR-ADD"]
["HARDWARE","Sales Inventory","Round Adhesive 1.4\" Dia","80068",{"v":1,"d":"$1.00"},"EVIR Hardware Add-ons","PARTS"]
["HARDWARE","Sales Inventory","Zones 1-11 Marigold NFC Tag Kit","81617",{"v":70.95,"d":"$70.95"},"EVIR Hardware Add-ons","EVIR-ADD"]
["HARDWARE","Sales Inventory","Zones 1-7 Black NFC Tag Kit","81613",{"v":45.15,"d":"$45.15"},"Ancillary Hardware","EVIR-ADD"]
["HARDWARE","Sales Inventory","Black Zone NFC Tag #01","20102",{"v":6.45,"d":"$6.45"},"EVIR Hardware Add-ons","EVIR-ADD"]
["HARDWARE","Sales Inventory","Black Zone NFC Tag #02","20103",{"v":6.45,"d":"$6.45"},"EVIR Hardware Add-ons","EVIR-ADD"]
["HARDWARE","Sales Inventory","Black Zone NFC Tag #03","20104",{"v":6.45,"d":"$6.45"},"EVIR Hardware Add-ons","EVIR-ADD"]
["HARDWARE","Sales Inventory","Black Zone NFC Tag #04","20105",{"v":6.45,"d":"$6.45"},"EVIR Hardware Add-ons","EVIR-ADD"]
["HARDWARE","Sales Inventory","Black Zone NFC Tag #05","20106",{"v":6.45,"d":"$6.45"},"EVIR Hardware Add-ons","EVIR-ADD"]
["HARDWARE","Sales Inventory","Black Zone NFC Tag #06","20107",{"v":6.45,"d":"$6.45"},"EVIR Hardware Add-ons","EVIR-ADD"]
["HARDWARE","Sales Inventory","Black Zone NFC Tag #07","20108",{"v":6.45,"d":"$6.45"},"EVIR Hardware Add-ons","EVIR-ADD"]
["HARDWARE","Sales Inventory","Black Zone NFC Tag #08","20109",{"v":6.45,"d":"$6.45"},"EVIR Hardware Add-ons","EVIR-ADD"]
["HARDWARE","Sales Inventory","Black Zone NFC Tag #09","20110",{"v":6.45,"d":"$6.45"},"EVIR Hardware Add-ons","EVIR-ADD"]
["HARDWARE","Sales Inventory","Black Zone NFC Tag #10","20111",{"v":6.45,"d":"$6.45"},"EVIR Hardware Add-ons","EVIR-ADD"]
["HARDWARE","Sales Inventory","Black Zone NFC Tag #11","20112",{"v":6.45,"d":"$6.45"},"EVIR Hardware Add-ons","EVIR-ADD"]
["HARDWARE","Sales Inventory","Black Zone NFC Tag #12","20113",{"v":6.45,"d":"$6.45"},"EVIR Hardware Add-ons","EVIR-ADD"]
["HARDWARE","Sales Inventory","Black Zone NFC Tag #13","20114",{"v":6.45,"d":"$6.45"},"EVIR Hardware Add-ons","EVIR-ADD"]
["HARDWARE","Sales Inventory","Marigold Zone NFC Tag #01","20086",{"v":6.45,"d":"$6.45"},"EVIR Hardware Add-ons","EVIR-ADD"]
["HARDWARE","Sales Inventory","Marigold Zone NFC Tag #02","20087",{"v":6.45,"d":"$6.45"},"EVIR Hardware Add-ons","EVIR-ADD"]
["HARDWARE","Sales Inventory","Marigold Zone NFC Tag #03","20088",{"v":6.45,"d":"$6.45"},"EVIR Hardware Add-ons","EVIR-ADD"]
["HARDWARE","Sales Inventory","Marigold Zone NFC Tag #04","20089",{"v":6.45,"d":"$6.45"},"EVIR Hardware Add-ons","EVIR-ADD"]
["HARDWARE","Sales Inventory","Marigold Zone NFC Tag #05","20090",{"v":6.45,"d":"$6.45"},"EVIR Hardware Add-ons","EVIR-ADD"]
["HARDWARE","Sales Inventory","Marigold Zone NFC Tag #06","20091",{"v":6.45,"d":"$6.45"},"EVIR Hardware Add-ons","EVIR-ADD"]
["HARDWARE","Sales Inventory","Marigold Zone NFC Tag #07","20092",{"v":6.45,"d":"$6.45"},"EVIR Hardware Add-ons","EVIR-ADD"]
["HARDWARE","Sales Inventory","Marigold Zone NFC Tag #08","20093",{"v":6.45,"d":"$6.45"},"EVIR Hardware Add-ons","EVIR-ADD"]
["HARDWARE","Sales Inventory","Marigold Zone NFC Tag #09","20094",{"v":6.45,"d":"$6.45"},"EVIR Hardware Add-ons","EVIR-ADD"]
["HARDWARE","Sales Inventory","Marigold Zone NFC Tag #10","20095",{"v":6.45,"d":"$6.45"},"EVIR Hardware Add-ons","EVIR-ADD"]
["HARDWARE","Sales Inventory","Marigold Zone NFC Tag #11","20096",{"v":6.45,"d":"$6.45"},"EVIR Hardware Add-ons","EVIR-ADD"]
["HARDWARE","Sales Inventory","Marigold Zone NFC Tag #12","20097",{"v":6.45,"d":"$6.45"},"EVIR Hardware Add-ons","EVIR-ADD"]
["HARDWARE","Sales Inventory","Marigold Zone NFC Tag #13","20098",{"v":6.45,"d":"$6.45"},"EVIR Hardware Add-ons","EVIR-ADD"]
["HARDWARE","Sales Inventory","Extended Asset Tags","HSTAG01",{"v":19.35,"d":"$19.35"},"Ancillary Hardware","EVIR-ADD"]
[null,null,"---Cards---"]
["HARDWARE","Sales Inventory","Operator/Driver Card","20055",{"v":5.45,"d":"$5.45"},"EVIR Hardware Add-ons","EVIR-ADD"]
["HARDWARE","Sales Inventory","Operator/Driver Card (No Logo)","20056",{"v":5.45,"d":"$5.45"},"EVIR Hardware Add-ons","EVIR-ADD"]
["HARDWARE","Sales Inventory","Student Card - Unpunched","81305",{"v":1.95,"d":"$1.95"},"ZPASS Hardware Add-ons","ZPASS-ADD"]
["HARDWARE","Sales Inventory","Student Card - Pre Punched","30034",{"v":1.95,"d":"$1.95"},"ZPASS Hardware Add-ons","ZPASS-ADD"]
[null,null,"---Tab Active2 Hardware---"]
["HARDWARE","Sales Inventory","Tab Active2 Dock (Proclip)","20136",{"v":150,"d":"$150.00"},"Ancillary Hardware","PARTS"]
["HARDWARE","Sales Inventory","Tab Active2 Multi-Device Charger","20141",{"v":450,"d":"$450.00"},"Ancillary Hardware","PARTS"]
["HARDWARE","Sales Inventory","Tab Active2 Screen Protector","20138",{"v":50,"d":"$50.00"},"Ancillary Hardware","PARTS"]
["HARDWARE","Sales Inventory","Tab Active2 Travel Power Adaptor","20137",{"v":41,"d":"$41.00"},"Ancillary Hardware","PARTS"]
["HARDWARE","Sales Inventory","Tab Active2 Replacement Battery","20139",{"v":62,"d":"$62.00"},"Ancillary Hardware","PARTS"]
[null,null,"---Connect Hardware---"]
["HARDWARE","Sales Inventory","Connect Dock v2","20117",{"v":100,"d":"$100.00"},"Ancillary Hardware","PARTS"]
["HARDWARE","Sales Inventory","RAM Mount w/ Backing Plate","20059",{"v":30,"d":"$30.00"},"Ancillary Hardware","PARTS"]
["HARDWARE","Sales Inventory","RAM Mount Screws 4x10 - 24x9/16 in Patch Screw","20079",{"v":5,"d":"$5.00"},"Ancillary Hardware","PARTS"]
["HARDWARE","Sales Inventory","Connect Wall Adapter","20083",{"v":20,"d":"$20.00"},"Ancillary Hardware","PARTS"]
[null,null,"---Zonar Mounting Hardware---"]
["HARDWARE","Sales Inventory","V3/V4 Mounting Bracket","80932",{"v":9.95,"d":"$9.95"},"Ancillary Hardware","PARTS"]
["HARDWARE","Sales Inventory","V3/V4 Mounting Bracket Screws","80209",{"v":0.5,"d":"$0.50"},"Ancillary Hardware","PARTS"]
["HARDWARE","Sales Inventory","Z Pass RAM Mount Bulk Kit","30024",{"v":30,"d":"$30.00"},"Ancillary Hardware","PARTS"]
[null,null,"---ZTRAK Hardware---"]
["HARDWARE","Sales Inventory","ZTRAK Battery Pack","80973",{"v":49.95,"d":"$49.95"},"Ancillary Hardware","PARTS"]
["HARDWARE","Sales Inventory","ZTRAK Magnet Mount Kit","81152",{"v":75.95,"d":"$75.95"},"Ancillary Hardware","ZTRAK-ADD"]
[null,null,"---2010 EVIR Hardware---"]
["HARDWARE","Sales Inventory","2010 Handheld","20001",{"v":175,"d":"$175.00"},"EVIR Hardware","EVIR"]
["HARDWARE","Sales Inventory","2010(A) Battery Pack (Blue)","80013",{"v":26.95,"d":"$26.95"},"EVIR Hardware Add-ons","PARTS"]
["HARDWARE","Sales Inventory","2010 Handheld Vehicle Mount","80312",{"v":59.97,"d":"$59.97"},"EVIR Hardware Add-ons","EVIR-ADD"]
["HARDWARE","Sales Inventory","GPSVM - Messaging PCBA Board","80326",{"v":19.95,"d":"$19.95"},"EVIR Hardware Add-ons","EVIR-ADD"]
["HARDWARE","Sales Inventory","Reader Download Station","HSRDS01",{"v":74.95,"d":"$74.95"},"EVIR Hardware Add-ons","EVIR-ADD"]
["HARDWARE","Sales Inventory","Vehicle Mount for V3R","81496",{"v":59.97,"d":"$59.97"},"EVIR Hardware Add-ons","PARTS"]

{"sheet":"Cables","index":2,"n_rows":53,"n_cols":7,"rows_kept":53,"hidden":true}
[]
[null,null,"---Plug&Play Power Cables and Adapters---"]
["HARDWARE","Sales Inventory","GPS Light Duty Cable Kit","81153",{"v":29.95,"d":"$29.95"},"Cables and Adapters","CBL-LD"]
["HARDWARE","Sales Inventory","GPS Diagnostic 9 Pin 500K","81523",{"v":39.95,"d":"$39.95"},"Cables and Adapters","CBL-JB"]
["HARDWARE","Sales Inventory","6-9 Pin Adapter","81632",{"v":50,"d":"$50.00"},"Cables and Adapters","CBL-JB"]
["HARDWARE","Sales Inventory","9-Pin J1939 500k Y-Splitter Cable","81658",{"v":45,"d":"$45.00"},"Cables and Adapters","CBL-JB"]
["HARDWARE","Sales Inventory","Cable Assembly RP1226 (Paccar Only)","81660",{"v":49.85,"d":"$49.85"},"Cables and Adapters","CBL-JB"]
["HARDWARE","Sales Inventory","GPS WW 9-PIN EXT POWER","80341",{"v":29.95,"d":"$29.95"},"Cables and Adapters","CBL-JB"]
[null,null,"---Tablet Cables---"]
["HARDWARE","Sales Inventory","Tab Active2 Cable","81656",{"v":60,"d":"$60.00"},"Cables and Adapters","TA2-ADD"]
["HARDWARE","Sales Inventory","2020 Power/Serial Cable - M","20062",{"v":69.95,"d":"$69.95"},"Cables and Adapters","2020-ADD"]
["HARDWARE","Sales Inventory","2020 Power& Serial CBL DTNA","20064",{"v":49.75,"d":"$49.75"},"Cables and Adapters","2020-ADD"]
["HARDWARE","Sales Inventory","Connect Wall Adapter Cable","20084",{"v":25,"d":"$25.00"},"Cables and Adapters","2020-ADD"]
["HARDWARE","Sales Inventory","2020 Power Adapter Cable","20051",{"v":19.95,"d":"$19.95"},"Cables and Adapters","2020-ADD"]
[null,null,"---Backbone Power Cables and Adapters---"]
["HARDWARE","Sales Inventory","2 PIN DEUTSCH 500K","81517",{"v":39.95,"d":"$39.95"},"Cables and Adapters","CBL-JB"]
["HARDWARE","Sales Inventory","3-Pin J1939 500K Cable Kit","81599",{"v":39.95,"d":"$39.95"},"Cables and Adapters","CBL-JB"]
["HARDWARE","Sales Inventory","3-Pin Deutsch Cable Kit, White Wire","81652",{"v":80,"d":"$80.00"},"Cables and Adapters","CBL-JB"]
["HARDWARE","Sales Inventory","Next Gen Cascadia Retrofit Cable","81635",{"v":30,"d":"$30.00"},"Cables and Adapters","CBL-JB"]
["HARDWARE","Sales Inventory","Backbone Extension 500K Cable","81524",{"v":39.95,"d":"$39.95"},"Cables and Adapters","CBL-JB"]
["HARDWARE","Sales Inventory","AMP 2-Pin Universal Node Super Seal Cable","81526",{"v":39.95,"d":"$39.95"},"Cables and Adapters","CBL-JB"]
["HARDWARE","Sales Inventory","Met150 2-Pin Universal Node Cable","81527",{"v":39.95,"d":"$39.95"},"Cables and Adapters","CBL-JB"]
["HARDWARE","Sales Inventory","J1939-14 Splice Pack Adapter","81532",{"v":39.95,"d":"$39.95"},"Cables and Adapters","CBL-JB"]
["HARDWARE","Sales Inventory","2-Pin Deutsch Y Splitter","80082",{"v":29.95,"d":"$29.95"},"Cables and Adapters","CBL-JB"]
["HARDWARE","Sales Inventory","2Pin Terminating Resistor","80083",{"v":29.95,"d":"$29.95"},"Cables and Adapters","CBL-JB"]
["HARDWARE","Sales Inventory","J1939 to Retro Adapter 10P-2P","80715",{"v":29.95,"d":"$29.95"},"Cables and Adapters","CBL-JB"]
["HARDWARE","Sales Inventory","J1939-15 Univ Node Deutsch 2P","80716",{"v":29.95,"d":"$29.95"},"Cables and Adapters","CBL-JB"]
["HARDWARE","Sales Inventory","2Pin Deutsch Term Resistor Kit","H40035",{"v":29.95,"d":"$29.95"},"Cables and Adapters","CBL-JB"]
["HARDWARE","Sales Inventory","Cable Kit - WW 3Pin J1939-11","80979",{"v":29.95,"d":"$29.95"},"Cables and Adapters","CBL-JB"]
["HARDWARE","Sales Inventory","J1939-15 Univ Node Delphi GT","81025",{"v":29.95,"d":"$29.95"},"Cables and Adapters","CBL-JB"]
["HARDWARE","Sales Inventory","J1939 Node Extension","81022",{"v":19.95,"d":"$19.95"},"Cables and Adapters","GPS-ADD"]
["HARDWARE","Sales Inventory","GPS 4 PIN POWER CABLE VT RETRO","81536",{"v":8.95,"d":"$8.95"},"Cables and Adapters","GPS-ADD"]
[null,null,"---Basic 4-Pin Cables---"]
["HARDWARE","Sales Inventory","GPS 4Pin Power Cable Assy","10085",{"v":29.95,"d":"$29.95"},"Cables and Adapters","CBL-4P"]
["HARDWARE","Sales Inventory","GPS 4Pin Power Cable w/Cig","80260",{"v":29.95,"d":"$29.95"},"Cables and Adapters","CBL-4P"]
["HARDWARE","Sales Inventory","GPS 4PIN Power w/Chassis Gnd","10030",{"v":29.95,"d":"$29.95"},"Cables and Adapters","CBL-4P"]
["HARDWARE","Sales Inventory","Cable 4Pin Power 110AC - 12VDC","80989",{"v":29.95,"d":"$29.95"},"Cables and Adapters","CBL-4P"]
["HARDWARE","Sales Inventory","GPS 4PIN Power Cable","10007",{"v":29.95,"d":"$29.95"},"Cables and Adapters","CBL-4P"]
["HARDWARE","Sales Inventory","Inline Fuse Kit","80046",{"v":9.95,"d":"$9.95"},"Cables and Adapters","CBL-4P"]
[null,null,"---Accessory Cables---"]
["HARDWARE","Sales Inventory","5 Pin Data I/O Cable","80059",{"v":19.95,"d":"$19.95"},"Cables and Adapters","CBL-JB"]
["HARDWARE","Sales Inventory","Interface Cable, 6P to 6P 13ft","80765",{"v":29.95,"d":"$29.95"},"Cables and Adapters","PARTS"]
["HARDWARE","Sales Inventory","GPSVM Extension Cable","80038",{"v":29.95,"d":"$29.95"},"Cables and Adapters","EVIR-ADD"]
["HARDWARE","Sales Inventory","R-Terminal Adapter","81303",{"v":29.95,"d":"$29.95"},"Cables and Adapters","GPS-ADD"]
["HARDWARE","Sales Inventory","GPS Panic Button","80531",{"v":74.95,"d":"$74.95"},"Ancillary Hardware","GPS-ADD"]
["HARDWARE","Sales Inventory","GPS Antenna Kit","HSANT01",{"v":29.95,"d":"$29.95"},"Ancillary Hardware","GPS-ADD"]
["HARDWARE","Sales Inventory","V3 External GPS Antenna","81304",{"v":29.95,"d":"$29.95"},"Ancillary Hardware","GPS-ADD"]
["HARDWARE","Sales Inventory","GPS Antenna MP with Screws","80089",{"v":10,"d":"$10.00"},"Ancillary Hardware","GPS-ADD"]
[null,null,"---V3R Cables---"]
["HARDWARE","Sales Inventory","AG V3R Power-EVIR","81324",{"v":119.95,"d":"$119.95"},"Cables and Adapters","CBL-4P"]
["HARDWARE","Sales Inventory","AG V3R Pwr/EVIR/Inputs","81326",{"v":125,"d":"$125.00"},"Cables and Adapters","CBL-JB"]
["HARDWARE","Sales Inventory","V3R PWR/EVIR/INPUTS CABLE 20FT","81137",{"v":29.95,"d":"$29.95"},"Cables and Adapters","CBL-JB"]
["HARDWARE","Sales Inventory","AG V3R Pwr Gnd Disconnect Cbl","81313",{"v":64.01,"d":"$64.01"},"Cables and Adapters","CBL-4P"]